bitfinex-derivatives/quotes_SOLF0:USTF0_20241025
["timestamp","ask_amount","ask_price","bid_price","bid_amount"]
[1729874418999,2.9058,172.15,172.12,2.9061]
[1729874420501,2.9058,172.15,172.11,2.9062]
[1729874421504,2.9058,172.15,172.12,2.9061]
[1729874421799,1.2367,172.23,172.12,13.96108522]
[1729874421800,5.3,172.22,172.12,13.96108522]
[1729874422002,5.3,172.22,172.12,15.24468522]
[1729874422200,5.3,172.22,172.13,1.2518]
[1729874422802,2.9057,172.16,172.13,2.9059]
[1729874423209,13.96108522,172.2,172.11,5.3]
[1729874423509,5.3,172.23,172.14,13.96108522]
[1729874423895,2.9048,172.21,172.18,2.9051]
[1729874424091,5.3,172.23,172.14,13.96108522]
[1729874424505,13.96108522,172.25,172.19,2.905]
[1729874424506,2.9046,172.22,172.19,2.905]
[1729874425211,2.9046,172.22,172.15,2.481]
[1729874425212,1.1844,172.26,172.17,13.96108522]
[1729874425504,1.2276,172.27,172.19,13.96108522]
[1729874426099,1.2276,172.27,172.17,15.18288522]
[1729874426500,13.96108522,172.25,172.16,5.3]
[1729874426700,2.9045,172.23,172.18,2.9052]
[1729874426907,13.96108522,172.25,172.18,2.9052]
[1729874427107,13.96108522,172.25,172.16,5.3]
[1729874427997,2.9047,172.22,172.18,2.9052]
[1729874431003,13.96108522,172.23,172.15,2.481]
[1729874431611,2.905,172.2,172.16,2.9054]
[1729874432312,5.28,172.25,172.11,5.28]
[1729874432313,13.96108522,172.21,172.11,5.28]
[1729874432512,6.4851,172.2,172.11,5.28]
[1729874432807,13.96108522,172.18,172.11,5.28]
[1729874433215,2.9061,172.13,172.11,5.28]
[1729874433401,2.9061,172.13,172.1,2.9064]
[1729874433402,13.96108522,172.18,172.07,13.96108522]
[1729874433599,13.96108522,172.18,172.08,5.28]
[1729874434000,13.96108522,172.18,172.07,13.96108522]
[1729874434001,13.96108522,172.16,172.07,5.28]
[1729874434297,13.96108522,172.16,172.05,13.96108522]
[1729874434500,24.56072091,172.2,172.05,2.9074]
[1729874434501,2.9069,172.08,172.05,2.9074]
[1729874434705,2.9069,172.08,172.0,13.96108522]
[1729874434909,2.9071,172.07,172.03,2.9076]
[1729874435298,2.9071,172.07,172.02,5.28]
[1729874436011,2.9071,172.07,172.03,2.9077]
[1729874436210,2.9074,172.05,172.0,5.28]
[1729874436411,13.96108522,172.09,171.99,2.587]
[1729874436610,13.96108522,172.09,172.01,2.908]
[1729874437314,13.96108522,172.09,172.02,2.9079]
[1729874437720,2.9073,172.06,172.02,2.9079]
[1729874439418,13.96108522,172.09,172.02,2.9079]
[1729874439606,2.9074,172.05,172.0,5.28]
[1729874439803,13.96108522,172.07,171.99,2.587]
[1729874440324,13.96108522,172.07,172.0,2.9082]
[1729874440811,2.9077,172.04,172.0,2.9082]
[1729874441410,2.9077,172.04,171.99,2.587]
[1729874441619,13.96108522,172.07,171.99,2.587]
[1729874441809,2.9074,172.06,171.99,2.587]
[1729874442011,2.9074,172.06,171.99,16.54808522]
[1729874442215,1.1893,172.11,172.01,13.96108522]
[1729874442216,2.907,172.08,172.01,13.96108522]
[1729874442418,13.96108522,172.11,172.01,13.96108522]
[1729874442620,13.96108522,172.11,172.04,2.9074]
[1729874442927,13.96108522,172.11,172.03,5.28]
[1729874443219,13.96108522,172.11,172.06,2.9072]
[1729874443416,19.24108522,172.13,172.03,19.24108522]
[1729874443613,2.9065,172.11,172.04,1.26]
[1729874443816,19.24108522,172.13,172.06,2.9071]
[1729874444014,19.24108522,172.13,172.03,19.24108522]
[1729874444015,2.9065,172.1,172.03,19.24108522]
[1729874444313,13.96108522,172.11,172.03,8.1876]
[1729874444622,13.96108522,172.11,172.03,5.28]
[1729874445220,2.9071,172.08,172.04,2.9075]
[1729874445529,13.96108522,172.11,172.04,2.9075]
[1729874446021,13.96108522,172.09,172.02,2.9078]
[1729874446409,13.96108522,172.09,172.01,5.28]
[1729874447221,2.9073,172.06,172.03,2.9077]
[1729874447425,13.96108522,172.09,172.01,5.28]
[1729874447826,2.9072,172.07,172.03,2.9077]
[1729874449222,2.9072,172.06,172.03,2.9077]
[1729874449619,13.96108522,172.11,172.04,2.9075]
[1729874450015,19.24108522,172.11,172.04,2.9075]
[1729874450523,13.96108522,172.13,172.03,13.96108522]
[1729874450729,6.5441,172.14,172.05,13.96108522]
[1729874450930,2.9063,172.12,172.05,13.96108522]
[1729874451120,13.96108522,172.15,172.06,5.28]
[1729874451429,13.96108522,172.15,172.06,6.5377]
[1729874451633,13.96108522,172.13,172.06,5.28]
[1729874451822,2.9066,172.1,172.06,5.28]
[1729874452127,2.9066,172.1,172.06,8.1872]
[1729874452429,2.9067,172.09,172.06,8.1872]
[1729874452630,13.96108522,172.11,172.03,5.28]
[1729874453020,2.9068,172.09,172.03,5.28]
[1729874453327,13.96108522,172.11,172.04,2.9075]
[1729874453729,2.907,172.08,172.04,2.9075]
[1729874457237,13.96108522,172.11,172.01,5.28]
[1729874458137,2.9069,172.08,172.04,2.9076]
[1729874458332,13.96108522,172.11,172.01,5.28]
[1729874458928,2.9073,172.06,172.03,2.9076]
[1729874462164,13.96108522,172.11,172.0,15.21878522]
[1729874462165,13.96108522,172.09,172.0,2.9081]
[1729874462345,13.96108522,172.01,171.94,5.28]
[1729874462642,13.96108522,172.01,171.93,2.5272]
[1729874462841,13.96108522,172.01,171.91,5.28]
[1729874463046,2.9089,171.97,171.93,2.9093]
[1729874463336,13.96108522,171.99,171.88,2.5272]
[1729874463648,1.1842,172.02,171.88,1.2412]
[1729874463649,13.96108522,171.96,171.88,1.2412]
[1729874464247,13.96108522,171.96,171.88,6.5212]
[1729874464441,13.96108522,171.94,171.86,5.28]
[1729874464637,2.9096,171.92,171.88,2.9101]
[1729874465041,13.96108522,171.94,171.88,2.9101]
[1729874465433,13.96108522,171.94,171.86,5.28]
[1729874465434,19.24108522,171.96,171.86,19.24108522]
[1729874465636,13.96108522,171.96,171.86,19.24108522]
[1729874466244,2.9094,171.94,171.9,2.9098]
[1729874466546,5.28,171.98,171.88,13.96108522]
[1729874466739,2.9086,171.98,171.94,2.9092]
[1729874467336,2.9084,172.0,171.93,13.96108522]
[1729874467537,13.96108522,172.12,171.95,13.96108522]
[1729874467538,19.24108522,172.06,171.95,13.96108522]
[1729874467838,2.87154545,172.1,171.89,3.7062]
[1729874467839,2.9076,172.04,172.0,2.9082]
[1729874468141,2.9076,172.04,171.97,20.44648522]
[1729874468341,5.28,172.07,171.97,20.44648522]
[1729874468648,5.28,172.07,172.0,13.96108522]
[1729874468837,5.28,172.07,171.98,15.15218522]
[1729874469141,2.9075,172.05,172.0,2.9081]
[1729874469445,2.9075,172.05,171.98,15.15218522]
[1729874469649,2.9075,172.05,172.0,2.9082]
[1729874470646,2.9079,172.03,171.98,2.9084]
[1729874470844,13.96108522,172.06,171.95,13.96108522]
[1729874470845,13.96108522,172.04,171.95,13.96108522]
[1729874471145,2.9082,172.01,171.97,2.9086]
[1729874471349,13.96108522,172.04,171.95,13.96108522]
[1729874471848,2.9079,172.02,171.99,2.9084]
[1729874472047,6.5358,172.06,171.97,13.96108522]
[1729874472541,9.4432,172.06,171.97,13.96108522]
[1729874472760,13.96108522,172.09,171.99,13.96108522]
[1729874472941,19.24108522,172.09,171.99,13.96108522]
[1729874473144,19.24108522,172.09,172.03,2.9076]
[1729874473339,19.24108522,172.09,172.0,4.65]
[1729874473642,2.9074,172.06,172.02,2.9079]
[1729874474440,2.9075,172.05,172.01,2.9081]
[1729874474643,19.24108522,172.09,172.01,2.9081]
[1729874474644,1.2544,172.08,172.01,2.9081]
[1729874475039,2.9079,172.03,172.0,4.65]
[1729874475246,13.96108522,172.02,172.0,4.65]
[1729874476259,13.96108522,172.02,171.9,22.91308522]
[1729874476440,5.28,172.04,171.9,22.91308522]
[1729874476441,13.96108522,171.99,171.9,22.91308522]
[1729874477146,13.96108522,171.99,171.94,2.9091]
[1729874477147,2.9086,171.98,171.94,2.9091]
[1729874477540,2.9086,171.98,171.9,22.91308522]
[1729874478246,2.4708,172.07,171.9,22.91308522]
[1729874478247,13.96108522,171.97,171.9,8.952]
[1729874478455,13.96108522,171.97,171.9,1.287]
[1729874478747,13.96108522,171.97,171.87,5.28]
[1729874478936,13.96108522,171.95,171.85,13.96108522]
[1729874479249,13.96108522,171.93,171.84,9.0553]
[1729874479651,13.96108522,171.93,171.85,4.65]
[1729874479845,2.9098,171.91,171.85,4.65]
[1729874480445,13.96108522,171.93,171.86,2.9106]
[1729874480649,13.96108522,171.93,171.85,4.65]
[1729874480950,13.96108522,171.91,171.85,4.65]
[1729874481146,2.9101,171.9,171.85,4.65]
[1729874481349,13.96108522,171.91,171.85,4.65]
[1729874482049,2.9105,171.87,171.85,4.65]
[1729874482451,13.96108522,171.93,171.85,4.65]
[1729874483158,2.9101,171.9,171.86,2.9106]
[1729874484851,2.9101,171.89,171.86,2.9106]
[1729874485056,13.96108522,171.93,171.86,2.9106]
[1729874485656,2.91,171.9,171.86,2.9106]
[1729874486556,1.1983,171.98,171.85,18.61108522]
[1729874486755,19.24108522,171.97,171.86,1.2835]
[1729874487158,2.9094,171.94,171.9,2.9099]
[1729874487552,19.24108522,171.97,171.9,2.9099]
[1729874487751,2.9095,171.93,171.9,2.9099]
[1729874488048,2.9095,171.93,171.88,13.96108522]
[1729874488049,2.9095,171.93,171.89,2.9101]
[1729874488858,2.97880764,172.01,171.87,1.2927]
[1729874488859,13.96108522,171.99,171.9,13.96108522]
[1729874489055,5.28,171.99,171.9,13.96108522]
[1729874489259,13.96108522,171.97,171.88,1.2101]
[1729874489452,13.96108522,171.97,171.88,2.9102]
[1729874489863,13.96108522,171.97,171.87,1.2927]
[1729874489864,13.96108522,171.95,171.86,1.2835]
[1729874490162,2.96167989,172.01,171.87,2.9104]
[1729874490163,2.91,171.9,171.87,2.9104]
[1729874490568,2.91,171.9,171.86,1.2835]
[1729874490569,13.96108522,171.93,171.86,1.2835]
[1729874491056,2.91,171.9,171.86,2.9106]
[1729874491363,2.91,171.9,171.85,4.65]
[1729874491364,13.96108522,171.9,171.85,4.65]
[1729874491566,2.9103,171.88,171.85,4.65]
[1729874492258,13.96108522,171.93,171.85,4.65]
[1729874492454,13.96108522,171.95,171.85,18.61108522]
[1729874492853,2.9097,171.92,171.88,2.9103]
[1729874493264,2.9097,171.92,171.85,13.96108522]
[1729874493453,2.9097,171.92,171.89,2.9101]
[1729874494660,2.9097,171.92,171.89,7.5601]
[1729874497667,2.9095,171.93,171.9,2.9098]
[1729874498770,2.9096,171.92,171.89,7.56]
[1729874501573,2.9094,171.94,171.9,2.9098]
[1729874501782,13.96108522,171.98,171.89,4.65]
[1729874502076,2.9091,171.95,171.92,2.9095]
[1729874503678,2.909,171.96,171.89,4.65]
[1729874503975,5.28,171.98,171.9,13.96108522]
[1729874504175,5.28,171.98,171.93,2.9094]
[1729874504176,2.909,171.96,171.93,2.9094]
[1729874504580,5.28,171.98,171.89,18.61108522]
[1729874504781,2.9089,171.97,171.94,2.9092]
[1729874505986,5.28,171.98,171.89,18.61108522]
[1729874506179,2.909,171.96,171.93,2.9093]
[1729874506583,13.96108522,172.0,171.89,18.61108522]
[1729874506880,5.28,172.01,171.93,13.96108522]
[1729874507087,5.28,172.02,171.94,1.2128]
[1729874507284,8.1879,172.02,171.99,2.9082]
[1729874507489,20.46988522,172.05,171.99,2.9082]
[1729874507691,20.46988522,172.05,171.94,3.8145]
[1729874507890,6.5088,172.05,171.94,3.8145]
[1729874508119,6.5088,172.05,171.95,13.96108522]
[1729874508283,5.28,172.05,171.95,13.96108522]
[1729874509292,2.9079,172.02,171.99,2.9083]
[1729874509984,2.9079,172.02,171.98,2.9085]
[1729874510286,5.28,172.05,171.98,2.9085]
[1729874510883,5.28,172.05,171.95,13.96108522]
[1729874511186,5.28,172.05,172.0,2.9082]
[1729874511776,5.28,172.05,171.96,5.26]
[1729874511777,2.9074,172.05,172.02,2.9078]
[1729874511980,1.2767,172.09,172.0,13.96108522]
[1729874512184,5.26,172.09,172.0,13.96108522]
[1729874512381,13.96108522,172.13,172.02,13.96108522]
[1729874512575,5.26,172.12,172.02,13.96108522]
[1729874512986,19.22108522,172.13,172.02,16.50908522]
[1729874513397,2.9065,172.11,172.07,2.9069]
[1729874514790,0.2401,172.19,172.07,2.9069]
[1729874514791,13.96108522,172.17,172.1,2.9065]
[1729874515092,19.22108522,172.17,172.1,2.9065]
[1729874515290,19.22108522,172.17,172.08,1.2817]
[1729874515884,19.22108522,172.17,172.12,2.9062]
[1729874515885,2.9056,172.16,172.12,2.9062]
[1729874517398,2.906,172.14,172.1,1.2129]
[1729874518398,2.906,172.14,172.1,4.1194]
[1729874518895,13.96108522,172.18,172.1,4.1194]
[1729874519084,2.906,172.13,172.1,4.1194]
[1729874520391,2.906,172.13,172.1,2.9065]
[1729874521096,2.906,172.14,172.1,2.9065]
[1729874522089,13.96108522,172.18,172.09,1.229]
[1729874522413,13.96108522,172.18,172.08,1.2817]
[1729874522414,13.96108522,172.16,172.08,1.2817]
[1729874522596,5.26,172.15,172.08,1.2817]
[1729874522798,13.96108522,172.13,172.04,1.2667]
[1729874523100,13.96108522,172.11,172.04,1.2667]
[1729874523292,2.9066,172.1,172.04,1.2667]
[1729874523793,2.906,172.13,172.09,2.9067]
[1729874523987,5.26,172.17,172.08,13.96108522]
[1729874524590,5.26,172.17,172.1,2.9065]
[1729874525303,2.906,172.14,172.1,2.9065]
[1729874525496,13.96108522,172.2,172.08,19.22108522]
[1729874525698,2.9055,172.17,172.13,2.906]
[1729874525887,19.22108522,172.2,172.13,2.906]
[1729874527287,2.9056,172.16,172.13,2.906]
[1729874529497,13.96108522,172.18,172.09,13.96108522]
[1729874529699,2.9062,172.12,172.09,2.9067]
[1729874530002,2.9062,172.12,172.07,7.7473]
[1729874530302,2.9062,172.12,172.09,2.9067]
[1729874530494,2.9062,172.12,172.1,4.64]
[1729874530697,13.96108522,172.16,172.1,4.64]
[1729874531596,13.96108522,172.13,172.1,4.64]
[1729874532100,2.9064,172.11,172.1,4.64]
[1729874533596,16.86748522,172.11,172.1,4.64]
[1729874533803,13.96108522,172.11,172.03,2.9077]
[1729874533990,2.9073,172.06,172.03,2.9077]
[1729874534795,2.9065,172.11,172.05,2.9073]
[1729874535100,19.22108522,172.14,172.04,13.96108522]
[1729874535492,19.22108522,172.14,172.06,2.9071]
[1729874536005,13.96108522,172.14,172.06,2.9071]
[1729874536203,2.9068,172.09,172.06,2.9071]
[1729874538902,13.96108522,172.14,172.02,20.52488522]
[1729874539210,13.96108522,172.11,172.03,2.9076]
[1729874539406,13.96108522,172.11,172.02,6.5638]
[1729874539604,13.96108522,172.09,172.02,6.5638]
[1729874539809,2.9074,172.06,172.02,9.4717]
[1729874540395,13.96108522,172.09,172.02,9.4717]
[1729874540705,2.9074,172.05,172.02,9.4717]
[1729874540903,13.96108522,172.09,172.0,8.1682]
[1729874541106,2.9079,172.03,172.0,8.1682]
[1729874541498,13.96108522,172.07,171.99,1.2587]
[1729874541697,13.96108522,172.08,171.99,1.2587]
[1729874541900,19.22108522,172.1,171.99,15.21978522]
[1729874542098,19.22108522,172.1,172.01,2.9079]
[1729874542705,2.9077,172.04,172.01,2.9079]
[1729874542906,2.9077,172.04,171.99,15.21978522]
[1729874543104,2.9077,172.04,172.0,2.9082]
[1729874543614,13.96108522,172.07,171.99,1.2587]
[1729874543803,13.96108522,172.05,171.99,1.2587]
[1729874544322,2.9081,172.01,171.99,1.2587]
[1729874548812,306.22108522,172.0,171.86,2.9105]
[1729874549023,13.96108522,171.91,171.84,2.4105]
[1729874549208,5.26,171.9,171.84,2.4105]
[1729874549515,5.26,171.9,171.84,1.2035]
[1729874549916,2.9108,171.86,171.84,1.2035]
[1729874550127,8.1708,171.86,171.84,1.2035]
[1729874550308,8.1708,171.86,171.77,2.912]
[1729874550627,13.96108522,171.85,171.71,13.96108522]
[1729874550815,13.96108522,171.85,171.73,13.96108522]
[1729874550816,5.24,171.84,171.73,13.96108522]
[1729874551117,5.24,171.83,171.76,13.96108522]
[1729874551711,5.24,171.84,171.76,13.96108522]
[1729874552020,13.96108522,171.87,171.76,13.96108522]
[1729874552319,13.96108522,171.89,171.78,13.96108522]
[1729874552518,5.24,171.88,171.78,13.96108522]
[1729874552717,2.9107,171.86,171.81,2.9114]
[1729874553112,13.96108522,171.89,171.78,13.96108522]
[1729874553321,2.9101,171.9,171.84,2.9109]
[1729874553506,5.24,171.9,171.85,1.2003]
[1729874555316,2.9103,171.88,171.85,1.2003]
[1729874556318,5.24,171.9,171.85,1.2003]
[1729874557018,2.9104,171.88,171.85,1.2003]
[1729874557223,5.24,171.91,171.85,1.2003]
[1729874557725,2.9104,171.88,171.85,1.2003]
[1729874558217,5.24,171.91,171.85,1.2003]
[1729874560025,2.9104,171.88,171.85,1.2003]
[1729874560721,2.9102,171.89,171.85,4.111]
[1729874560926,5.24,171.91,171.85,1.2003]
[1729874561326,2.9104,171.88,171.85,1.2003]
[1729874562125,5.24,171.93,171.87,2.9104]
[1729874562327,5.24,171.96,171.86,13.96108522]
[1729874562730,2.9096,171.92,171.86,13.96108522]
[1729874564428,2.9096,171.92,171.88,2.9102]
[1729874565224,13.96108522,171.94,171.85,1.2003]
[1729874565432,13.96108522,171.91,171.85,1.2003]
[1729874565627,13.96108522,171.94,171.85,1.2003]
[1729874565828,2.9101,171.89,171.85,4.111]
[1729874567031,2.9101,171.89,171.86,2.9106]
[1729874569335,2.9095,171.93,171.9,2.9098]
[1729874569733,2.9095,171.93,171.88,13.96108522]
[1729874570030,2.9095,171.93,171.89,2.91]
[1729874571040,13.96108522,171.98,171.88,19.20108522]
[1729874571241,1.0,172.0,171.92,13.96108522]
[1729874571427,1.0,172.0,171.93,2.4909]
[1729874572218,5.24,172.01,171.93,2.4909]
[1729874572219,2.9087,171.98,171.94,2.9092]
[1729874574138,2.9087,171.98,171.95,2.9091]
[1729874576136,5.24,172.01,171.93,2.4909]
[1729874576337,2.9084,171.99,171.96,2.9088]
[1729874576544,13.96108522,172.05,171.94,13.96108522]
[1729874576736,2.9081,172.02,171.98,2.9084]
[1729874576930,19.20108522,172.05,171.98,2.9084]
[1729874577133,19.20108522,172.05,171.96,13.96108522]
[1729874577640,2.908,172.02,171.96,13.96108522]
[1729874578236,2.908,172.02,171.99,2.9084]
[1729874579435,5.24,172.05,171.96,13.96108522]
[1729874579635,2.9077,172.04,171.96,19.20108522]
[1729874580228,2.9077,172.04,172.01,2.9079]
[1729874580439,76.80108522,172.11,172.01,13.96108522]
[1729874580738,5.24,172.1,172.01,13.96108522]
[1729874580945,5.24,172.1,172.02,3.7998]
[1729874581137,2.907,172.08,172.02,3.7998]
[1729874581336,5.24,172.1,172.02,3.7998]
[1729874581540,13.96108522,172.09,172.02,2.4923]
[1729874582137,2.9075,172.05,172.02,5.4002]
[1729874582441,13.96108522,172.09,172.02,2.4923]
[1729874582635,5.24,172.1,172.02,2.4923]
[1729874582841,2.907,172.08,172.02,2.4923]
[1729874583643,2.9071,172.07,172.04,2.9074]
[1729874587143,13.96108522,172.09,171.99,19.20108522]
[1729874587442,13.96108522,172.09,171.99,13.96108522]
[1729874587643,13.96108522,172.07,171.98,5.24]
[1729874587946,2.9077,172.04,172.0,2.9081]
[1729874588144,13.96108522,172.07,172.0,2.9081]
[1729874588350,13.96108522,172.07,171.97,13.96108522]
[1729874588548,2.9079,172.02,171.99,2.9083]
[1729874589042,2.9079,172.02,171.96,7.7514]
[1729874589043,13.96108522,172.05,171.96,2.5114]
[1729874589243,13.96108522,172.0,171.91,5.24]
[1729874590340,5.24,172.01,171.91,5.24]
[1729874590647,5.24,172.01,171.91,19.20108522]
[1729874590844,2.9085,171.99,171.91,19.20108522]
[1729874591033,5.24,172.01,171.91,19.20108522]
[1729874591640,2.9086,171.98,171.95,2.9089]
[1729874592333,2.9086,171.98,171.93,13.96108522]
[1729874592334,2.9085,171.99,171.96,2.9089]
[1729874592850,19.20108522,172.02,171.93,13.96108522]
[1729874593046,13.96108522,172.0,171.91,13.96108522]
[1729874593647,2.9086,171.98,171.95,2.9091]
[1729874595759,5.24,172.01,171.93,13.96108522]
[1729874596543,5.24,172.01,171.95,2.909]
[1729874597255,5.24,172.01,171.93,13.96108522]
[1729874597256,2.9085,171.99,171.96,2.9089]
[1729874599439,2.9082,172.01,171.94,1.1851]
[1729874599646,2.9082,172.01,171.95,13.96108522]
[1729874600149,2.9082,172.01,171.98,2.9086]
[1729874600450,2.9078,172.03,171.97,13.96108522]
[1729874600650,5.24,172.06,171.99,2.9083]
[1729874600855,5.24,172.06,171.97,13.96108522]
[1729874601157,2.9078,172.03,171.97,15.23878522]
[1729874601354,2.9078,172.03,172.01,2.908]
[1729874601550,0.6686,172.1,171.99,13.96108522]
[1729874601752,5.9086,172.1,172.01,13.96108522]
[1729874602051,13.96108522,172.11,172.05,2.9073]
[1729874602759,2.907,172.08,172.05,2.9073]
[1729874602950,5.24,172.12,172.07,2.907]
[1729874603359,2.9067,172.1,172.07,2.907]
[1729874603854,2.9067,172.1,172.07,7.547]
[1729874604952,2.9064,172.12,172.09,2.9067]
[1729874605585,13.96108522,172.18,172.08,13.96108522]
[1729874606161,5.24,172.17,172.08,13.96108522]
[1729874606659,13.96108522,172.18,172.11,2.9063]
[1729874606660,2.906,172.14,172.11,2.9063]
[1729874606845,0.6682,172.24,172.1,13.96108522]
[1729874606846,13.96108522,172.2,172.1,13.96108522]
[1729874607051,6.19667431,172.19,172.1,13.96108522]
[1729874607248,5.24,172.19,172.1,13.96108522]
[1729874608343,2.9056,172.16,172.1,13.96108522]
[1729874608953,2.9061,172.13,172.09,6.4459]
[1729874609152,5.24,172.21,172.07,4.64]
[1729874609153,13.96108522,172.15,172.07,4.64]
[1729874609357,13.96108522,172.13,172.07,4.64]
[1729874609555,2.9066,172.1,172.07,7.547]
[1729874610164,2.9066,172.1,172.07,4.64]
[1729874610461,13.96108522,172.13,172.07,4.64]
[1729874611062,13.96108522,172.13,172.07,7.547]
[1729874611657,13.96108522,172.13,172.07,4.64]
[1729874611864,2.9069,172.08,172.07,4.64]
[1729874612260,13.96108522,172.11,172.07,4.64]
[1729874612261,2.9068,172.09,172.07,4.64]
[1729874612658,13.96108522,172.11,172.07,4.64]
[1729874613061,2.9067,172.1,172.07,4.64]
[1729874613563,5.24,172.15,172.07,4.64]
[1729874614260,2.9065,172.11,172.08,2.9068]
[1729874614459,5.24,172.15,172.07,4.64]
[1729874614663,2.9065,172.11,172.07,4.64]
[1729874615366,13.96108522,172.16,172.1,2.9065]
[1729874615367,2.9062,172.13,172.1,2.9065]
[1729874616667,5.22,172.16,172.07,11.1297]
[1729874617857,2.9061,172.13,172.07,11.1297]
[1729874618370,13.96108522,172.18,172.1,2.9064]
[1729874618664,13.96108522,172.2,172.08,13.96108522]
[1729874618962,13.96108522,172.2,172.13,2.906]
[1729874619169,2.9057,172.16,172.13,2.906]
[1729874619359,13.96108522,172.2,172.09,1.2014]
[1729874620259,2.9054,172.17,172.1,2.9064]
[1729874620557,13.96108522,172.2,172.1,2.9064]
[1729874621356,2.9056,172.16,172.12,2.906]
[1729874621769,13.96108522,172.2,172.1,13.96108522]
[1729874621970,2.9055,172.16,172.1,13.96108522]
[1729874622369,2.9055,172.17,172.13,2.906]
[1729874622870,5.22,172.21,172.1,13.96108522]
[1729874623466,5.22,172.21,172.14,2.9057]
[1729874623467,2.9054,172.17,172.14,2.9057]
[1729874624566,2.9059,172.15,172.12,2.9061]
[1729874624872,2.9059,172.15,172.11,5.22]
[1729874625064,2.9059,172.15,172.12,2.9062]
[1729874625466,13.96108522,172.18,172.09,6.4214]
[1729874626471,2.906,172.14,172.09,6.4214]
[1729874626667,2.906,172.14,172.11,2.9064]
[1729874627476,2.9057,172.15,172.12,2.9061]
[1729874629166,13.96108522,172.2,172.1,13.96108522]
[1729874629368,13.96108522,172.2,172.14,2.9058]
[1729874629572,0.6672,172.23,172.14,2.9058]
[1729874629573,5.22,172.21,172.14,2.9058]
[1729874629767,2.9054,172.17,172.14,2.9058]
[1729874629966,13.96108522,172.2,172.1,13.96108522]
[1729874630173,13.96108522,172.2,172.13,2.906]
[1729874630574,2.9055,172.17,172.13,2.906]
[1729874630772,13.96108522,172.2,172.13,2.906]
[1729874631177,2.9052,172.18,172.13,2.906]
[1729874631376,13.96108522,172.2,172.13,2.906]
[1729874631978,2.9055,172.17,172.13,2.906]
[1729874632875,2.9055,172.17,172.1,13.96108522]
[1729874633082,2.9055,172.17,172.14,2.9057]
[1729874633271,13.96108522,172.22,172.12,13.96108522]
[1729874633473,2.9053,172.18,172.15,2.9056]
[1729874633674,19.18108522,172.22,172.13,1.2741]
[1729874633878,5.22,172.22,172.13,1.2741]
[1729874634074,13.96108522,172.24,172.17,2.9053]
[1729874634283,13.96108522,172.27,172.17,13.96108522]
[1729874634474,19.18108522,172.27,172.17,13.96108522]
[1729874634782,5.22,172.27,172.17,13.96108522]
[1729874634978,5.22,172.27,172.19,13.96108522]
[1729874635179,5.22,172.27,172.2,1.2564]
[1729874635770,5.22,172.27,172.2,4.1612]
[1729874637282,2.9043,172.24,172.2,4.1612]
[1729874638675,2.9043,172.24,172.2,1.2564]
[1729874638976,2.9038,172.27,172.21,13.96108522]
[1729874639173,2.9038,172.27,172.21,15.23818522]
[1729874639579,2.9038,172.27,172.23,2.9042]
[1729874639779,113.72522152,172.32,172.23,2.9042]
[1729874639987,2.9038,172.27,172.23,2.9042]
[1729874640182,113.72522152,172.32,172.22,4.64]
[1729874640883,5.2,172.34,172.24,13.96108522]
[1729874641088,5.2,172.34,172.24,19.16108522]
[1729874641273,2.9031,172.31,172.27,2.9035]
[1729874641711,5.2,172.34,172.27,2.9035]
[1729874641883,2.9032,172.3,172.27,2.9035]
[1729874642892,2.903,172.31,172.28,2.9035]
[1729874643790,2.903,172.31,172.26,13.96108522]
[1729874643983,2.903,172.31,172.27,2.9036]
[1729874644294,2.9023,172.35,172.3,13.96108522]
[1729874644490,5.98952832,172.41,172.33,13.96108522]
[1729874644789,5.98952832,172.41,172.36,13.96108522]